fUSD/lending_fUSD_20241023
["ID","MTS","AMOUNT","RATE_DAILY","PERIOD"]
[340679055,1729669843504,-1000.0,0.00041856,30]
[340679056,1729669843514,-3497.40120133,0.0004298,120]
[340679057,1729669843523,-150.82,0.00042982,2]
[340679058,1729669843533,-150.82,0.00042994,2]
[340679059,1729669843542,-150.82,0.00043006,2]
[340679060,1729669843552,-150.82,0.00043018,2]
[340679061,1729669843561,-150.82,0.0004303,2]
[340679062,1729669843571,-150.82,0.00043042,2]
[340679063,1729669843581,-150.82,0.00043054,2]
[340679064,1729669843590,-150.82,0.00043066,2]
[340679065,1729669843600,-150.82,0.00043078,2]
[340679066,1729669843610,-250.99,0.0004308,30]
[340679067,1729669843620,-150.82,0.0004309,2]
[340679068,1729669843788,-150.82,0.00043102,2]
[340679069,1729669843798,-150.82,0.00043113,2]
[340679070,1729669843808,-150.82,0.00043125,2]
[340679071,1729669843817,-150.82,0.00043137,2]
[340679072,1729669843827,-167.47,0.000432,2]
[340679073,1729669843836,-152.22,0.00043286,120]
[340679074,1729669843847,-200.0,0.0004332,2]
[340679075,1729669843858,-200.0,0.00043353,2]
[340679076,1729669843868,-156.93,0.00043642,120]
[340679077,1729669843878,-4171.59,0.00044,120]
[340679078,1729669843887,-500.0,0.0004406,14]
[340679079,1729669843898,-167.02,0.00044427,2]
[340679080,1729669843907,-660.0,0.00044707,7]
[340679081,1729669843916,-150.0,0.00044713,2]
[340679082,1729669843925,-150.0,0.00044714,2]
[340679083,1729669843935,-150.0,0.00044715,2]
[340679084,1729669843945,-150.0,0.00044722,2]
[340679085,1729669843954,-150.0,0.00044724,2]
[340679086,1729669843963,-150.0,0.00044728,2]
[340679087,1729669843972,-150.0,0.00044728,2]
[340679088,1729669843982,-150.0,0.0004473,2]
[340679089,1729669843991,-150.0,0.00044733,2]
[340679090,1729669844000,-150.0,0.00044744,2]
[340679091,1729669844010,-150.0,0.00044746,2]
[340679092,1729669844019,-150.0,0.00044752,2]
[340679093,1729669844029,-150.0,0.00044753,2]
[340679094,1729669844038,-150.0,0.00044753,2]
[340679095,1729669844048,-150.0,0.00044754,2]
[340679096,1729669844057,-150.0,0.00044755,2]
[340679097,1729669844067,-250.99,0.00044757,30]
[340679098,1729669844076,-150.0,0.0004476,2]
[340679099,1729669844086,-150.0,0.00044762,2]
[340679100,1729669844095,-1192.30106827,0.00044766,7]
[340679101,1729669844108,-181.64,0.00044767,2]
[340679102,1729669844117,-235.28813822,0.00044767,2]
[340679103,1729669844127,-150.0,0.00044768,2]
[340679104,1729669844138,-150.0,0.00044769,2]
[340679105,1729669844149,-150.0,0.0004477,2]
[340679106,1729669844158,-150.0,0.0004477,2]
[340679107,1729669844169,-154.1263301,0.00044771,2]
[340679108,1729669844178,-150.0,0.00044772,2]
[340679109,1729669844189,-150.0,0.00044773,2]
[340679110,1729669844198,-150.0,0.00044783,2]
[340679111,1729669844209,-150.0,0.00044787,2]
[340679112,1729669844218,-150.0,0.00044789,2]
[340679113,1729669844228,-742.652,0.000448,2]
[340679114,1729669844238,-150.0,0.00044801,2]
[340679115,1729669844247,-150.0,0.00044802,2]
[340679116,1729669844256,-150.0,0.00044805,2]
[340679117,1729669844266,-151.0664732,0.00044806,7]
[340679118,1729669844275,-150.0,0.00044807,2]
[340679119,1729669844285,-150.0,0.00044809,2]
[340679120,1729669844295,-150.0,0.00044821,2]
[340679121,1729669844305,-150.0,0.00044822,2]
[340679122,1729669844315,-150.0,0.0004483,2]
[340679123,1729669844324,-150.0,0.00044831,2]
[340679124,1729669844334,-150.0,0.00044834,2]
[340679125,1729669844344,-150.0,0.00044834,2]
[340679126,1729669844355,-150.0,0.00044839,2]
[340679127,1729669844364,-150.0,0.0004484,2]
[340679128,1729669844374,-150.0,0.0004484,2]
[340679129,1729669844383,-150.0,0.00044848,2]
[340679130,1729669844393,-150.0,0.0004485,2]
[340679131,1729669844403,-150.0,0.00044865,2]
[340679132,1729669844412,-150.0,0.00044865,2]
[340679133,1729669844423,-150.0,0.00044867,2]
[340679134,1729669844433,-150.0,0.00044871,2]
[340679135,1729669844442,-150.0,0.00044871,2]
[340679136,1729669844453,-461.8,0.00044871,2]
[340679137,1729669844463,-150.0,0.00044874,2]
[340679138,1729669844473,-150.0,0.0004488,2]
[340679139,1729669844482,-150.0,0.00044882,2]
[340679140,1729669844493,-150.0,0.00044883,2]
[340679141,1729669844503,-150.0,0.00044887,2]
[340679142,1729669844513,-250.99,0.0004489,30]
[340679143,1729669844523,-250.99,0.0004489,30]
[340679144,1729669844533,-250.99,0.0004489,30]
[340679145,1729669844542,-250.99,0.0004489,30]
[340679146,1729669844552,-250.99,0.0004489,30]
[340679147,1729669844561,-250.99,0.0004489,30]
[340679148,1729669844571,-250.99,0.0004489,30]
[340679149,1729669844580,-250.99,0.0004489,30]
[340679150,1729669844589,-250.99,0.0004489,30]
[340679151,1729669844599,-250.99,0.0004489,30]
[340679152,1729669844610,-150.0,0.00044892,2]
[340679153,1729669844620,-150.0,0.00044895,2]
[340679154,1729669844630,-182.5368,0.00044895,2]
[340679155,1729669844639,-150.0,0.00044899,2]
[340679156,1729669844650,-150.0,0.00044899,2]
[340679157,1729669844660,-4023.93854363,0.000449,2]
[340679158,1729669844676,-352.62047522,0.000449,2]
[340679159,1729669844694,-6092.90423065,0.000449,2]
[340679164,1729669846346,-263.555023,0.00042002,120]
[340679165,1729669846572,-395.78930881,0.00044895,2]
[340679166,1729669846585,-2104.21069119,0.00044895,2]
[340679167,1729669846595,-110.43840283,0.000449,2]
[340679190,1729670515735,250.0,0.0001,2]
[340679191,1729670516855,300.0,0.00012,2]
[340679192,1729670736172,-157.84,0.00015342,2]
[340679193,1729670736194,-156.78,0.00015342,2]
[340679194,1729670736215,-98.15785858,0.000158,2]
[340679195,1729670754112,-745.60006669,0.00015242,2]
[340679196,1729670754133,-198.84214142,0.000158,2]
[340679197,1729670754153,-226.41735012,0.00017258,2]
[340679207,1729671034376,-150.0,0.00017241,2]
[340679208,1729671034386,-448.97184433,0.00017257,2]
[340679209,1729671034429,-792.5901174,0.00017257,2]
[340679210,1729671034484,-3163.61163349,0.00017257,2]
[340679211,1729671034496,-3006.78025478,0.00017257,2]
[340679212,1729671034506,-150.0,0.000219,2]
[340679213,1729671034515,-169.27,0.00023,7]
[340679214,1729671034524,-156.78,0.00025479,2]
[340679215,1729671034534,-621.602,0.00031963,2]
[340679216,1729671034543,-499.99,0.00031963,2]
[340679217,1729671034553,-178.124,0.0003287,33]
[340679218,1729671034562,-3221.49,0.0003287,2]
[340679219,1729671034572,-156.78,0.00035616,2]
[340679220,1729671034581,-167.47,0.00037494,2]
[340679221,1729671034591,-150.0,0.00038274,120]
[340679222,1729671034600,-150.0,0.0003834,4]
[340679223,1729671034609,-3495.11602105,0.00038341,2]
[340679224,1729671034631,-661.82674922,0.00038341,2]
[340679225,1729671034643,-523.142,0.00038341,2]
[340679226,1729671034659,-1153.40522973,0.00038341,2]
[340679227,1729671034668,-250.0,0.00038482,120]
[340679228,1729671034678,-163.61,0.00038518,2]
[340679229,1729671034687,-1000.0,0.00038536,2]
[340679230,1729671034698,-6083.78,0.00038791,2]
[340679231,1729671034708,-250.0,0.00038919,2]
[340679232,1729671034718,-214.62,0.00038923,2]
[340679233,1729671034728,-504.15,0.00039022,2]
[340679234,1729671034737,-168.05,0.00039032,120]
[340679235,1729671034747,-3983.87,0.00039217,2]
[340679236,1729671034756,-250.0,0.00039256,2]
[340679237,1729671034765,-165.8,0.00039267,120]
[340679238,1729671034774,-200.0,0.00039297,2]
[340679239,1729671034784,-1017.9,0.00039359,2]
[340679240,1729671034793,-157.84,0.00039671,2]
[340679241,1729671034802,-168.31,0.00040091,120]
[340679242,1729671034811,-214.62,0.00040869,2]
[340679243,1729671034820,-5957.0,0.00041104,30]
[340679244,1729671034829,-200.0,0.00041118,2]
[340679245,1729671034838,-504.15,0.00041286,2]
[340679246,1729671034847,-1794.531,0.00041497,7]
[340679247,1729671034857,-152.0,0.00041933,3]
[340679248,1729671034866,-3294.95,0.00042,120]
[340679249,1729671034875,-12407.17,0.0004239,7]
[340679250,1729671034885,-421.66335505,0.0004269,28]
[340679251,1729671034894,-1171.5900056,0.00042699,2]
[340679252,1729671034904,-619.20220777,0.000427,2]
[340679253,1729671034913,-170.61461797,0.000427,17]
[340679254,1729671034923,-436.09254634,0.000427,19]
[340679255,1729671035089,-171.75,0.0004277,10]
[340679256,1729671035104,-858.75,0.0004277,10]
[340679257,1729671035113,-22773.13836755,0.0004278,9]
[340679258,1729671035125,-420.816,0.0004278,9]
[340679259,1729671035137,-102927.07232245,0.0004278,9]
[340679260,1729671035146,-1417.36959839,0.00042789,60]
[340679261,1729671035157,-512.70158281,0.00042789,31]
[340679262,1729671035166,-500.0,0.00042789,31]
[340679263,1729671035175,-529.66906067,0.00042789,31]
[340679264,1729671035185,-500.0,0.00042789,31]
[340679265,1729671035194,-500.0,0.00042789,31]
[340679266,1729671035203,-500.0,0.00042789,31]
[340679267,1729671035213,-500.0,0.00042789,31]
[340679268,1729671035223,-341.92467607,0.00042789,31]
[340679269,1729671035232,-500.0,0.00042789,31]
[340679270,1729671035241,-500.0,0.00042789,31]
[340679271,1729671035251,-500.0,0.00042789,31]
[340679272,1729671035261,-500.0,0.00042789,31]
[340679273,1729671035271,-500.0,0.00042789,31]
[340679274,1729671035280,-115184.25275951,0.0004279,9]
[340679294,1729671037740,-450.0,0.00041497,7]
[340679296,1729671037750,-13.42999658,0.0004279,9]
[340679302,1729671037793,-13022.27915014,0.0004279,9]
[340679305,1729671037900,-1000.0,0.00041286,2]
[340679306,1729671037910,-8194.96650191,0.0004279,9]
[340679441,1729671039585,-3436.78335,0.0004279,9]
[340679442,1729671039745,-273.70476842,0.0004279,9]
[340679443,1729671039799,-1000.0,0.0004239,7]
[340679444,1729671039809,-80.0,0.0004279,9]
[340679521,1729671043643,-1000.0,0.0004278,9]
[340679523,1729671043652,-2177.3396,0.0004279,9]
[340679526,1729671043664,-46798.78390844,0.0004279,9]
[340679528,1729671043673,-38757.6106999,0.0004279,9]
[340679530,1729671043682,-217.33020738,0.0004279,2]
[340679532,1729671043692,-1417.36959839,0.00042799,60]
[340679534,1729671043702,-500.0,0.00042799,31]
[340679536,1729671043712,-431.26837392,0.00042799,31]
[340679538,1729671043721,-91095.76222099,0.000428,120]
[340679540,1729671043733,-6421.00275729,0.000428,120]
[340679542,1729671043744,-7603.26532861,0.000428,120]
[340679545,1729671043756,-347.16939893,0.000428,120]
[340679547,1729671043768,-2600.0,0.000428,120]
[340679548,1729671043780,-6949.01210957,0.000428,120]
[340679579,1729671045739,-314.03110542,0.00042799,2]
[340679582,1729671045751,-649.99006501,0.00042799,2]
[340679590,1729671045850,-3336.62435934,0.00042799,2]
[340679662,1729671552593,167.72,0.00010959,2]
[340679685,1729671908032,1200.89417144,0.00011,2]
[340679686,1729671908068,49700.0,0.00011,2]
[340679687,1729671908100,184055.84697656,0.00011,2]
[340679705,1729672231908,-151.63404891,0.00015228,2]
[340679706,1729672231914,-158.48,0.00015342,2]
[340679707,1729672231923,-154.32,0.00015342,2]
[340679708,1729672231932,-154.75,0.00017765,2]
[340679709,1729672231941,-2150.09948569,0.00019725,2]
[340679710,1729672232018,-777.9651537,0.00019725,2]
[340679723,1729672237842,-1274.7322656,0.00015242,2]
[340679724,1729672237851,-5447.36369499,0.00019725,2]
[340679725,1729672237862,-3154.55829781,0.00019725,2]
[340679726,1729672237901,-5424.0650457,0.00019725,2]
[340679727,1729672238122,-2149.8971841,0.00019725,2]
[340679728,1729672238134,-300.0,0.00019725,2]
[340679729,1729672238146,-300.0,0.00019725,2]
[340679730,1729672238157,-499.99,0.00021484,2]
[340679731,1729672238167,-420.0,0.00021484,2]
[340679732,1729672238177,-480.0,0.00023401,2]
[340679733,1729672238187,-154.32,0.00026401,2]
[340679734,1729672238198,-178.124,0.00032879,34]
[340679735,1729672238207,-468.281,0.00035143,2]
[340679736,1729672238219,-621.455,0.00035143,2]
[340679737,1729672238230,-1102.7,0.00035143,2]
[340679738,1729672238240,-552.79,0.0003716,2]
[340679739,1729672238251,-154.32,0.0003746,2]
[340679740,1729672238267,-1279.8285,0.00038332,2]
[340679741,1729672238276,-250.0,0.00038333,120]
[340679742,1729672238285,-220.84,0.00038394,120]
[340679743,1729672238296,-1000.0,0.00038432,2]
[340679744,1729672238304,-165.8,0.00038596,120]
[340679745,1729672238316,-158.23,0.00038596,2]
[340679746,1729672238325,-2375.34225841,0.00038969,2]
[340679747,1729672238336,-425.69636,0.00038969,2]
[340679748,1729672238350,-2093.1,0.00038969,2]
[340679752,1729672239892,-268.453185,0.00038969,2]
[340679753,1729672240061,-5575.39819659,0.00038969,2]
[340679754,1729672240072,-160.96,0.00038983,2]
[340679755,1729672240082,-401.14180391,0.00038998,120]
[340679762,1729672242919,-2349.85819609,0.00038998,120]
[340679763,1729672242928,-200.0,0.00038998,2]
[340679764,1729672242938,-250.0,0.00039159,2]
[340679765,1729672242947,-250.0,0.00039212,2]
[340679766,1729672242957,-1036.01,0.00039309,2]
[340679767,1729672242966,-552.79,0.00039424,2]
[340679768,1729672242975,-168.31,0.00039827,120]
[340679769,1729672242985,-174.42637221,0.00040097,2]
[340679770,1729672242994,-378.78174207,0.00040097,2]
[340679771,1729672243005,-1837.24704195,0.00040097,2]
[340679784,1729672245813,-3944.92956042,0.00040097,2]
[340679785,1729672245823,-1000.0,0.00040097,2]
[340679786,1729672245831,-160.96,0.00041582,2]
[340679787,1729672245840,-552.79,0.00041687,2]
[340679788,1729672245849,-117.45687347,0.00041986,2]
[340679789,1729672245862,-45.29312653,0.00041986,2]
[340679790,1729672245872,-1011.34770498,0.00042,7]
[340679791,1729672245882,-377.38,0.00042,120]
[340679792,1729672245892,-12500.0,0.00042,120]
[340679793,1729672245901,-210.07,0.00042028,120]
[340679794,1729672245911,-12500.0,0.00042225,120]
[340679795,1729672245921,-12500.0,0.0004245,120]
[340679796,1729672245931,-24866.6875884,0.000425,120]
[340679797,1729672245940,-12500.0,0.00042675,120]
[340679798,1729672245949,-662.92112138,0.0004269,14]
[340679799,1729672245959,-368.95543566,0.0004269,28]
[340679800,1729672245968,-12042.75260253,0.0004269,15]
[340679801,1729672245977,-162.02955995,0.000427,17]
[340679802,1729672245986,-170.49259751,0.000427,8]
[340679803,1729672245996,-161.10146292,0.00042773,7]
[340679804,1729672246005,-151.0,0.0004278,14]
[340679805,1729672246014,-785.95,0.0004278,2]
[340679806,1729672246023,-785.95,0.0004278,2]
[340679807,1729672246033,-785.95,0.0004278,2]
[340679808,1729672246042,-785.95,0.0004278,2]
[340679809,1729672246051,-785.95,0.0004278,2]
[340679810,1729672246060,-593.54718623,0.00042789,31]
[340679811,1729672246071,-151.0,0.0004279,14]
[340679812,1729672246080,-151.0,0.0004279,14]
[340679813,1729672246089,-141739.72087911,0.0004279,9]
[340679814,1729672246101,-142293.16980689,0.0004279,9]
[340679815,1729672246110,-97495.6693511,0.0004279,9]
[340679816,1729672246122,-90191.59340001,0.0004279,9]
[340679817,1729672246135,-40124.61654889,0.0004279,9]
[340679818,1729672246146,-603.0,0.000428,7]
[340679819,1729672246155,-32460.61348598,0.000428,120]
[340679820,1729672246188,-669.56646,0.000428,120]
[340679824,1729672319169,250.0,0.0001,2]
[340679827,1729673407106,-300.0,0.00012,2]
[340679845,1729673431933,-350.0,0.00014,2]
[340679847,1729673431942,-156.49,0.00015342,2]
[340679848,1729673431952,-157.84,0.00015342,2]
[340679849,1729673431961,-156.78,0.00015342,2]
[340679850,1729673431970,-400.0,0.00016,2]
[340679851,1729673431979,-900.0,0.000162,2]
[340679852,1729673431989,-194.16,0.00019178,2]
[340679853,1729673431998,-165.8,0.00021918,2]
[340679854,1729673432007,-499.99,0.00021918,2]
[340679855,1729673432017,-150.0,0.000232,2]
[340679856,1729673432026,-156.78,0.00028858,2]
[340679857,1729673432036,-150.0,0.00034548,10]
[340679858,1729673432045,-613.16,0.00037783,2]
[340679859,1729673432055,-361.352,0.00038321,2]
[340679860,1729673432064,-150.0,0.00038321,2]
[340679861,1729673432073,-1151.0,0.00038321,2]
[340679862,1729673432084,-1085.0,0.00038321,2]
[340679863,1729673432093,-4462.44,0.00039614,2]
[340679864,1729673432273,-665.53,0.00039843,2]
[340679865,1729673432283,-2566.2864,0.00039851,2]
[340679866,1729673432292,-160.96,0.00039858,2]
[340679867,1729673432301,-1000.0,0.0003986,2]
[340679868,1729673432310,-2751.0,0.0003991,120]
[340679869,1729673432319,-250.0,0.00039916,120]
[340679870,1729673432327,-190.77,0.00039937,2]
[340679871,1729673432338,-200.0,0.00039943,2]
[340679872,1729673432347,-2470.08,0.00039951,2]
[340679873,1729673432356,-7779.56,0.00039998,2]
[340679874,1729673432366,-613.16,0.00040046,2]
[340679875,1729673432376,-200.0,0.00040134,2]
[340679876,1729673432385,-250.0,0.00040167,2]
[340679877,1729673432393,-1499.43,0.00040668,2]
[340679878,1729673432402,-250.0,0.00040703,2]
[340679879,1729673432411,-161.52,0.0004076,120]
[340679880,1729673432420,-1980.0,0.000408,7]
[340679881,1729673432430,-168.31,0.00040979,120]
[340679882,1729673432439,-178.124,0.00041052,60]
[340679883,1729673432448,-10095.894,0.00041245,30]
[340679884,1729673432457,-150.0,0.00041321,2]
[340679885,1729673432466,-1151.0,0.00041321,2]
[340679886,1729673432474,-452.428,0.00041321,2]
[340679887,1729673432484,-201.58,0.00041729,120]
[340679888,1729673432493,-152.0,0.00041933,3]
[340679889,1729673432505,-7536.99358991,0.00042,120]
[340679890,1729673432518,-439.43697198,0.00042,120]
[340679891,1729673432530,-1523.59407502,0.00042,120]
[340679892,1729673432543,-2999.97536309,0.00042,120]
[340679893,1729673432553,-300.0,0.00042119,2]
[340679894,1729673432563,-161.52,0.0004222,120]
[340679895,1729673432574,-4094.6782794,0.00042225,120]
[340679896,1729673432587,-8405.3217206,0.00042225,120]
[340679897,1729673432597,-613.16,0.0004231,2]
[340679898,1729673432606,-156.78,0.00042374,2]
[340679899,1729673432616,-12500.0,0.0004245,120]
[340679900,1729673432627,-172.61,0.00042555,2]
[340679901,1729673432639,-215.0707,0.00042575,2]
[340679902,1729673432651,-1090.7792,0.00042575,2]
[340679903,1729673432660,-167.0,0.00042634,2]
[340679904,1729673432671,-12500.0,0.00042675,120]
[340679905,1729673432681,-5625.13560484,0.0004269,15]
[340679906,1729673432696,-3525.16774563,0.0004269,15]
[340679907,1729673432715,-5339.7162782,0.0004269,15]
[340679908,1729673432729,-2998.21151495,0.0004269,15]
[340679909,1729673432738,-170.49259751,0.000427,8]
[340679910,1729673432746,-618.72638002,0.000427,14]
[340679911,1729673432755,-500.0,0.00042773,10]
[340679912,1729673432766,-25613.6803208,0.0004278,9]
[340679913,1729673432775,-266.3,0.0004278,2]
[340679914,1729673432784,-266.3,0.0004278,2]
[340679915,1729673432794,-266.3,0.0004278,2]
[340679916,1729673432803,-1000.0,0.00042789,120]
[340679917,1729673432813,-2522.22585495,0.00042789,7]
[340679918,1729673432823,-13698.38536391,0.00042789,7]
[340679919,1729673432837,-684.71908266,0.00042789,7]
[340679920,1729673432848,-1532.300026,0.00042789,7]
[340679921,1729673432858,-270.26587227,0.00042789,7]
[340679922,1729673432870,-552.67985681,0.00042789,7]
[340679923,1729673432880,-2016.43338816,0.00042789,7]
[340679924,1729673432890,-103358.17451894,0.0004279,9]
[340679925,1729673432901,-764.1593386,0.0004279,9]
[340679926,1729673438020,-462.7279108,0.00041245,30]
[340679927,1729673438235,-350.05534443,0.0004279,9]
[340680012,1729673440240,-1000.0,0.00042119,2]
[340680013,1729673440251,-163.2,0.0004279,9]
[340680017,1729673443342,-138694.37384503,0.0004279,9]
[340680018,1729673443351,-24282.4793796,0.0004279,9]
[340680019,1729673443360,-266.3,0.0004279,2]
[340680020,1729673443370,-266.3,0.0004279,2]
[340680021,1729673443380,-152.23641975,0.0004279,2]
[340680022,1729673443389,-851853.60823863,0.000428,120]
[340680023,1729673443398,-171.69744428,0.000428,30]
[340680024,1729673443407,-158.778879,0.000428,14]
[340680025,1729673443417,-164.482035,0.000428,14]
[340680026,1729673443426,-2200.0,0.000428,15]
[340680027,1729673443435,-151.0,0.000428,14]
[340680028,1729673443444,-164.707125,0.000428,14]
[340680029,1729673443454,-229.323098,0.000428,14]
[340680030,1729673443463,-12500.0,0.000429,120]
[340680031,1729673443473,-4500.0,0.000429,15]
[340680032,1729673443483,-4065.0,0.00043077,2]
[340680033,1729673443492,-12500.0,0.00043125,120]
[340680034,1729673443501,-220.84,0.00043194,120]
[340680035,1729673443510,-151.0,0.0004335,14]
[340680036,1729673443519,-156.728234,0.0004335,14]
[340680037,1729673443530,-12500.0,0.0004335,120]
[340680038,1729673443539,-592.0,0.00043422,7]
[340680039,1729673443548,-300.0,0.00043489,2]
[340680040,1729673443558,-12500.0,0.00043575,120]
[340680041,1729673443567,-12500.0,0.000438,120]
[340680042,1729673443576,-151.0,0.000438,14]
[340680043,1729673443586,-2088.5177154,0.00043835,120]
[340680044,1729673443596,-6800.0,0.000439,16]
[340680045,1729673443605,-5000.0,0.00044,120]
[340680046,1729673443615,-12500.0,0.00044025,120]
[340680047,1729673443624,-17488.23114353,0.00044237,15]
[340680048,1729673443633,-60399.735,0.0004425,120]
[340680049,1729673443643,-60399.735,0.0004425,120]
[340680050,1729673443654,-60399.735,0.0004425,120]
[340680051,1729673443663,-60399.735,0.0004425,120]
[340680052,1729673443672,-60399.736,0.0004425,120]
[340680053,1729673443681,-153.001311,0.0004425,14]
[340680054,1729673443690,-12500.0,0.0004425,120]
[340680055,1729673443699,-242.96008,0.0004425,14]
[340680056,1729673443708,-500.0,0.00044273,10]
[340680057,1729673443719,-500.0,0.00044273,10]
[340680058,1729673443730,-249.15794661,0.00044273,10]
[340680059,1729673443739,-12500.0,0.00044475,120]
[340680060,1729673443748,-613.16,0.00044574,2]
[340680061,1729673443757,-150.0,0.00044673,2]
[340680062,1729673443766,-150.0,0.00044683,2]
[340680063,1729673443775,-1500.0,0.00044684,7]
[340680064,1729673443784,-1500.0,0.00044686,7]
[340680065,1729673443794,-1500.0,0.00044686,7]
[340680066,1729673443803,-150.0,0.00044689,7]
[340680067,1729673443812,-150.0,0.0004469,2]
[340680068,1729673443821,-1500.0,0.00044692,7]
[340680069,1729673443831,-150.0,0.00044692,2]
[340680070,1729673443841,-1500.0,0.00044693,7]
[340680071,1729673443851,-150.0,0.00044696,2]
[340680072,1729673443860,-150.0,0.00044696,2]
[340680073,1729673443869,-150.0,0.00044698,2]
[340680074,1729673443878,-150.0,0.00044698,2]
[340680075,1729673443887,-150.0,0.000447,2]
[340680076,1729673443897,-12500.0,0.000447,120]
[340680077,1729673443906,-1500.0,0.00044703,7]
[340680078,1729673443915,-150.0,0.00044704,2]
[340680079,1729673443925,-150.0,0.00044705,2]
[340680080,1729673443934,-150.0,0.00044706,2]
[340680081,1729673443943,-150.0,0.00044706,2]
[340680082,1729673443952,-150.0,0.00044708,7]
[340680083,1729673443963,-150.0,0.00044716,2]
[340680084,1729673443974,-150.0,0.00044717,2]
[340680085,1729673443982,-150.0,0.00044718,7]
[340680086,1729673443993,-150.0,0.00044721,7]
[340680087,1729673444002,-150.0,0.00044723,2]
[340680088,1729673444011,-150.0,0.00044723,7]
[340680089,1729673444021,-150.0,0.00044723,2]
[340680090,1729673444030,-150.0,0.00044725,2]
[340680091,1729673444040,-150.0,0.00044728,2]
[340680092,1729673444049,-150.0,0.0004473,7]
[340680093,1729673444059,-150.0,0.00044731,2]
[340680094,1729673444068,-150.0,0.00044732,2]
[340680095,1729673444078,-1500.0,0.00044732,7]
[340680096,1729673444088,-150.0,0.00044734,2]
[340680097,1729673444097,-150.0,0.00044735,2]
[340680098,1729673444106,-150.0,0.00044737,2]
[340680099,1729673444116,-150.0,0.00044738,2]
[340680100,1729673444125,-150.0,0.00044742,2]
[340680101,1729673444135,-150.0,0.00044748,2]
[340680102,1729673444145,-150.0,0.0004475,7]
[340680103,1729673444155,-150.0,0.00044751,2]
[340680104,1729673444164,-1500.0,0.00044752,7]
[340680105,1729673444174,-150.0,0.00044752,7]
[340680106,1729673444184,-150.0,0.00044758,2]
[340680107,1729673444194,-150.0,0.00044759,7]
[340680108,1729673444203,-150.0,0.0004476,2]
[340680109,1729673444213,-150.0,0.00044762,2]
[340680110,1729673444223,-150.0,0.00044764,7]
[340680111,1729673444232,-150.0,0.00044766,7]
[340680112,1729673444241,-150.0,0.00044768,2]
[340680113,1729673444250,-150.0,0.0004477,2]
[340680114,1729673444259,-150.0,0.00044773,2]
[340680115,1729673444268,-150.0,0.00044775,7]
[340680116,1729673444278,-150.0,0.00044775,2]
[340680117,1729673444287,-150.0,0.00044779,2]
[340680118,1729673444296,-150.0,0.00044783,2]
[340680119,1729673444305,-150.0,0.00044784,2]
[340680120,1729673444315,-1500.0,0.00044785,7]
[340680121,1729673444324,-150.0,0.00044787,2]
[340680122,1729673444333,-150.0,0.00044787,2]
[340680123,1729673444343,-150.0,0.00044788,2]
[340680124,1729673444353,-150.0,0.00044789,2]
[340680125,1729673444363,-1500.0,0.00044793,7]
[340680126,1729673444373,-1500.0,0.00044794,7]
[340680127,1729673444383,-1500.0,0.00044794,7]
[340680128,1729673444393,-150.0,0.00044794,2]
[340680129,1729673444402,-150.0,0.00044801,7]
[340680130,1729673444413,-150.0,0.00044801,2]
[340680131,1729673444422,-150.0,0.00044802,7]
[340680132,1729673444431,-150.0,0.00044802,2]